bitfinex/quotes_BTCUSD_20241226
["timestamp","ask_amount","ask_price","bid_price","bid_amount"]
[1735233344709,0.10398632,96457.0,96447.0,0.12581012]
[1735233345872,0.10398632,96457.0,96447.0,0.002]
[1735233346107,0.05186623,96456.0,96447.0,0.002]
[1735233346428,0.05186623,96456.0,96447.0,0.006]
[1735233346949,0.05186623,96456.0,96447.0,0.004]
[1735233347351,0.05186623,96456.0,96447.0,0.006]
[1735233347891,0.05186623,96456.0,96447.0,0.002]
[1735233348097,0.05186623,96456.0,96447.0,0.006]
[1735233349052,0.05705285,96455.0,96447.0,0.006]
[1735233349262,0.05705285,96455.0,96448.0,0.207365]
[1735233349460,0.207337,96462.0,96448.0,0.207365]
[1735233349667,0.10398632,96461.0,96451.0,0.207359]
[1735233350247,0.10398632,96461.0,96450.0,0.12381012]
[1735233351099,0.10398632,96461.0,96451.0,0.001]
[1735233352495,0.10398632,96461.0,96451.0,0.003]
[1735233352711,0.05186533,96460.0,96451.0,0.003]
[1735233352871,0.15585165,96460.0,96451.0,0.003]
[1735233353215,0.15585165,96460.0,96451.0,0.002]
[1735233353714,0.207341,96459.0,96451.0,0.002]
[1735233353913,0.207341,96459.0,96445.0,0.20737]
[1735233354089,0.05705297,96458.0,96445.0,0.20737]
[1735233354288,0.05705297,96458.0,96451.0,0.004]
[1735233354451,0.05705297,96458.0,96451.0,0.001]
[1735233354846,0.05705297,96458.0,96451.0,0.003]
[1735233355022,0.05705297,96458.0,96446.0,8.57e-05]
[1735233355318,0.06536274,96457.0,96446.0,8.57e-05]
[1735233355523,0.06536274,96457.0,96451.0,0.004]
[1735233356970,0.06536274,96457.0,96451.0,0.002]
[1735233357378,0.06536274,96457.0,96446.0,0.0040857]
[1735233357556,0.06536274,96457.0,96451.0,0.002]
[1735233357758,0.05705297,96456.0,96451.0,0.002]
[1735233357910,0.05705297,96456.0,96451.0,0.006]
[1735233358263,0.05705297,96456.0,96451.0,0.004]
[1735233358587,0.05705297,96456.0,96446.0,8.57e-05]
[1735233358885,0.05705297,96456.0,96451.0,0.004]
[1735233360510,0.05758887,96455.0,96451.0,0.006]
[1735233361551,0.05758887,96455.0,96451.0,0.004]
[1735233361756,0.05758887,96455.0,96446.0,8.57e-05]
[1735233361994,0.10415772,96460.0,96451.0,0.005]
[1735233362727,0.207341,96459.0,96451.0,0.005]
[1735233363017,0.207341,96459.0,96451.0,0.007]
[1735233363524,0.207341,96459.0,96447.0,0.207367]
[1735233363683,0.05188357,96458.0,96447.0,0.207367]
[1735233363898,0.05188357,96458.0,96451.0,0.001]
[1735233364401,0.05188357,96458.0,96451.0,0.003]
[1735233364813,0.05188357,96458.0,96447.0,0.208367]
[1735233365088,0.05188357,96458.0,96451.0,0.004]
[1735233365259,0.05707213,96457.0,96451.0,0.004]
[1735233366615,0.05707213,96457.0,96447.0,0.208365]
[1735233366790,0.05707213,96457.0,96447.0,0.207365]
[1735233366994,0.05707213,96457.0,96447.0,0.211365]
[1735233367177,0.05707213,96457.0,96451.0,0.002]
[1735233367379,0.05760713,96456.0,96451.0,0.006]
[1735233367616,0.05760713,96456.0,96451.0,0.004]
[1735233367780,0.0001714,96458.0,96447.0,0.207365]
[1735233367979,0.0001714,96458.0,96447.0,0.213365]
[1735233368405,0.0001714,96458.0,96447.0,0.207365]
[1735233368606,0.2075164,96458.0,96446.0,8.57e-05]
[1735233368779,0.05190111,96457.0,96451.0,0.002]
[1735233369202,0.207348,96456.0,96451.0,0.002]
[1735233369681,0.207348,96456.0,96451.0,0.006]
[1735233369896,0.207348,96456.0,96451.0,0.002]
[1735233370072,0.207348,96456.0,96446.0,8.57e-05]
[1735233370273,0.207348,96456.0,96451.0,0.004]
[1735233370722,0.207352,96454.0,96451.0,0.004]
[1735233370899,0.207352,96454.0,96451.0,0.008]
[1735233371310,0.207357,96452.0,96451.0,0.008]
[1735233371514,0.39164332,96452.0,96451.0,0.004]
[1735233371717,0.39164332,96452.0,96446.0,0.0020857]
[1735233371718,0.207367,96447.0,96446.0,0.0020857]
[1735233371942,0.38494671,96447.0,96446.0,0.0020857]
[1735233372303,0.38494671,96447.0,96446.0,8.57e-05]
[1735233372913,0.43434671,96447.0,96446.0,8.57e-05]
[1735233373114,0.44499796,96447.0,96446.0,8.57e-05]
[1735233373567,0.44499796,96447.0,96446.0,0.0040857]
[1735233374004,0.23763096,96447.0,96423.0,0.00733594]
[1735233374208,0.207399,96433.0,96423.0,0.00015475]
[1735233374651,0.207407,96429.0,96423.0,0.00015475]
[1735233375115,0.10398632,96428.0,96423.0,0.00015475]
[1735233375885,0.10398632,96428.0,96423.0,0.00315475]
[1735233376106,0.05187873,96427.0,96423.0,0.00315475]
[1735233376861,0.207389,96437.0,96423.0,0.01015475]
[1735233377258,0.10398632,96436.0,96424.0,0.207417]
[1735233377461,0.10398632,96436.0,96423.0,0.00715475]
[1735233377594,0.207393,96435.0,96423.0,0.01015475]
[1735233377791,0.37128765,96434.0,96423.0,0.00315475]
[1735233377995,0.16389265,96434.0,96423.0,0.00815475]
[1735233378198,0.207416,96425.0,96423.0,0.00815475]
[1735233378396,0.18428632,96424.0,96423.0,0.00015475]
[1735233380125,0.18428632,96424.0,96423.0,0.00024045]
[1735233380951,0.18428632,96424.0,96423.0,0.00324045]
[1735233381430,0.18428632,96424.0,96423.0,0.00224045]
[1735233381792,0.24419715,96424.0,96423.0,0.00024045]
[1735233381998,0.24719715,96424.0,96423.0,0.00024045]
[1735233384727,0.24819715,96424.0,96423.0,0.00024045]
[1735233386668,0.39819715,96424.0,96423.0,0.00024045]
[1735233387249,0.52119715,96424.0,96423.0,0.00024045]
[1735233387653,0.62119715,96424.0,96423.0,0.00024045]
[1735233388240,0.62019715,96424.0,96423.0,0.00024045]
[1735233388664,0.62519715,96424.0,96423.0,0.00024045]
[1735233389188,0.207468,96401.0,96386.0,0.20710985]
[1735233389366,0.207471,96399.0,96391.0,0.00051613]
[1735233389588,0.10398632,96398.0,96391.0,0.00051613]
[1735233390964,0.10398632,96398.0,96391.0,0.00451613]
[1735233391399,0.207475,96397.0,96391.0,0.00451613]
[1735233391549,0.15587955,96396.0,96391.0,0.00451613]
[1735233392363,0.15587955,96396.0,96391.0,0.00651613]
[1735233393055,0.15587955,96396.0,96391.0,0.00051613]
[1735233393186,0.15587955,96396.0,96391.0,0.00251613]
[1735233393392,0.15587955,96396.0,96391.0,0.00651613]
[1735233393595,0.15587955,96396.0,96391.0,0.00251613]
[1735233394219,0.10398632,96396.0,96391.0,0.00251613]
[1735233394400,0.10398632,96396.0,96391.0,0.00751613]
[1735233397082,0.207479,96395.0,96391.0,0.00751613]
[1735233397729,0.414958,96395.0,96391.0,0.00751613]
[1735233398165,0.207479,96395.0,96391.0,0.00751613]
[1735233398363,0.25937283,96395.0,96391.0,0.00751613]
[1735233398573,0.207479,96395.0,96391.0,0.00551613]
[1735233398805,0.10398632,96396.0,96391.0,0.00551613]
[1735233399212,0.10398632,96396.0,96391.0,0.00051613]
[1735233399388,0.10398632,96396.0,96391.0,0.00251613]
[1735233399592,0.10398632,96396.0,96391.0,0.00751613]
[1735233399802,0.10398632,96396.0,96391.0,0.00251613]
[1735233400160,0.10398632,96396.0,96391.0,0.00751613]
[1735233400778,0.07840904,96423.0,96391.0,0.02901764]
[1735233400989,0.0001714,96428.0,96401.0,0.2262]
[1735233401223,0.0001714,96428.0,96414.0,0.0762]
[1735233401494,0.0001714,96428.0,96414.0,0.283638]
[1735233401680,0.0001714,96428.0,96418.0,0.207428]
[1735233401907,0.0001714,96428.0,96418.0,0.10154475]
[1735233402022,0.0001714,96428.0,96426.0,0.207412]
[1735233402449,0.0001714,96428.0,96427.0,0.001037]
[1735233402698,0.0031714,96428.0,96426.0,0.207412]
[1735233402907,0.0001714,96428.0,96427.0,0.07723691]
[1735233403111,0.0001714,96428.0,96427.0,0.33122323]
[1735233403265,0.0051714,96428.0,96427.0,0.41100387]
[1735233403487,0.0051714,96428.0,96427.0,0.43400387]
[1735233403694,4e-07,96428.0,96427.0,0.64000387]
[1735233404060,4e-07,96428.0,96427.0,0.64300387]
[1735233404599,0.20731,96474.0,96431.0,0.15]
[1735233404796,0.20731,96474.0,96445.0,0.10154475]
[1735233405011,0.2073,96479.0,96445.0,0.10154475]
[1735233405012,0.2073,96479.0,96454.0,0.207352]
[1735233405215,0.0051314,96483.0,96454.0,0.207352]
[1735233405443,0.207299,96479.0,96454.0,0.207352]
[1735233406530,0.207299,96479.0,96454.0,0.209352]
[1735233406753,0.207311,96474.0,96454.0,0.209352]
[1735233407072,0.207311,96474.0,96454.0,0.211352]
[1735233407271,0.207311,96474.0,96454.0,0.213352]
[1735233407569,0.207311,96474.0,96454.0,0.218352]
[1735233407931,0.20732,96469.0,96454.0,0.02277135]
[1735233408130,0.20732,96469.0,96454.0,0.005]
[1735233408764,0.20731,96474.0,96454.0,0.003]
[1735233409058,0.414604,96478.0,96454.0,0.003]
[1735233409650,0.414604,96478.0,96454.0,0.207352]
[1735233409972,0.20731,96474.0,96454.0,0.207352]
[1735233410172,0.20731,96474.0,96454.0,0.211352]
[1735233410867,0.20731,96474.0,96454.0,0.207352]
[1735233411283,0.20731,96474.0,96454.0,0.209352]
[1735233411756,0.207319,96470.0,96454.0,0.002]
[1735233411974,0.0051314,96483.0,96454.0,0.002]
[1735233412182,0.10415772,96455.0,96454.0,0.002]
[1735233413208,0.10415772,96455.0,96442.0,0.01322392]
[1735233413358,0.34673638,96454.0,96442.0,0.01322392]
[1735233413572,0.31133832,96454.0,96441.0,0.22778695]
[1735233413768,0.10398632,96454.0,96441.0,0.22778695]
[1735233415823,0.10398632,96454.0,96441.0,0.02040695]
[1735233416027,0.207354,96453.0,96441.0,0.02040695]
[1735233416225,0.207364,96449.0,96441.0,0.02040695]
[1735233416443,0.10398632,96453.0,96441.0,0.02040695]
[1735233416857,0.0001714,96455.0,96450.0,0.207361]
[1735233417052,0.002,96454.0,96450.0,0.207361]
[1735233417897,0.002,96454.0,96450.0,0.414722]
[1735233418314,0.0001714,96455.0,96450.0,0.207361]
[1735233418668,0.001,96453.0,96450.0,0.414721]
[1735233419280,0.0001714,96455.0,96453.0,0.207352]
[1735233420721,0.0001714,96455.0,96453.0,0.208352]
[1735233421307,0.0001714,96455.0,96453.0,0.22139494]
[1735233421923,0.0001714,96455.0,96453.0,0.01404294]
[1735233423032,0.0001714,96455.0,96453.0,0.01304294]
[1735233423452,0.0001714,96455.0,96453.0,0.001]
[1735233423625,0.0001714,96455.0,96453.0,0.208352]
[1735233425676,0.0001714,96455.0,96453.0,0.209352]
[1735233426058,0.0001714,96455.0,96453.0,0.22131754]
[1735233426267,0.0001714,96455.0,96453.0,0.22331754]
[1735233426476,0.0001714,96455.0,96454.0,0.20270073]
[1735233427508,0.0001714,96455.0,96454.0,0.15152298]
[1735233427744,0.0001714,96455.0,96454.0,0.15048632]
[1735233428038,0.0001714,96455.0,96454.0,0.15152292]
[1735233428468,0.0001714,96455.0,96454.0,0.15048632]
[1735233429091,0.0001714,96455.0,96454.0,0.15448632]
[1735233429671,0.0001714,96455.0,96454.0,0.15948632]
[1735233429872,0.0001714,96455.0,96454.0,0.15048632]
[1735233430081,0.0001714,96455.0,96454.0,0.15248632]
[1735233430280,0.0001714,96455.0,96454.0,0.15848632]
[1735233430479,0.0001714,96455.0,96454.0,0.15648632]
[1735233430843,0.0001714,96455.0,96454.0,0.16448632]
[1735233432084,0.0001714,96455.0,96454.0,0.23604929]
[1735233432326,0.0001714,96455.0,96454.0,0.23501271]
[1735233432546,0.0001714,96455.0,96454.0,0.25801271]
[1735233432753,0.0051314,96483.0,96461.0,0.25]
[1735233432927,0.0051314,96483.0,96482.0,0.207292]
[1735233433160,0.0051314,96483.0,96482.0,0.37750752]
[1735233433338,0.0051314,96483.0,96482.0,0.55050752]
[1735233433842,0.0001714,96492.0,96491.0,0.357273]
[1735233434046,0.0001714,96492.0,96491.0,0.48425932]
[1735233434247,0.00032589,96492.0,96491.0,0.58425932]
[1735233434453,0.00032589,96492.0,96491.0,0.71318152]
[1735233434655,0.00032589,96492.0,96491.0,0.73970738]
[1735233435272,0.00032589,96492.0,96491.0,0.67162315]
[1735233435419,0.00032589,96492.0,96491.0,0.58824564]
[1735233435830,0.00032589,96492.0,96491.0,0.63970738]
[1735233436157,0.00032589,96492.0,96491.0,0.62018152]
[1735233436456,0.0001714,96495.0,96494.0,0.1]
[1735233436658,0.0001714,96495.0,96494.0,0.37802228]
[1735233436864,0.207177,96536.0,96517.0,0.207216]
[1735233437066,0.00068702,96525.0,96518.0,0.00103596]
[1735233437707,0.00068702,96525.0,96515.0,0.10154475]
[1735233437911,0.00068702,96525.0,96516.0,0.02030895]
[1735233438535,0.00068702,96525.0,96511.0,0.00103596]
[1735233438742,0.00068702,96525.0,96514.0,0.207223]
[1735233439143,0.00068702,96525.0,96514.0,0.414446]
[1735233439348,0.00068702,96525.0,96514.0,0.207223]
[1735233441023,0.00068702,96525.0,96524.0,0.207202]
[1735233441457,0.00068702,96525.0,96524.0,0.31118832]
[1735233442689,0.00068702,96525.0,96522.0,0.02036436]
[1735233442888,0.00068702,96525.0,96524.0,0.02157762]
[1735233443000,0.00068702,96525.0,96524.0,0.002]
[1735233443432,0.00068702,96525.0,96524.0,0.007]
[1735233443649,0.00068702,96525.0,96485.0,0.0455]
[1735233443650,0.10467334,96525.0,96485.0,0.0455]
[1735233443878,0.207222,96515.0,96500.0,0.10154475]
[1735233444088,0.20723,96511.0,96500.0,0.10154475]
[1735233444605,0.12722365,96524.0,96497.0,0.02046267]
[1735233444606,0.283947,96503.0,96497.0,0.02046267]
[1735233445415,0.0767,96503.0,96497.0,0.02046267]
[1735233445598,0.283948,96503.0,96497.0,0.02046267]
[1735233446273,0.283948,96503.0,96500.0,0.005]
[1735233446562,0.283948,96503.0,96497.0,0.02046267]
[1735233447266,0.0767,96503.0,96497.0,0.02046267]
[1735233448774,0.283948,96503.0,96497.0,0.02046267]
[1735233448951,0.0767,96503.0,96497.0,0.02046267]
[1735233449368,0.207235,96509.0,96497.0,0.02046267]
[1735233449697,0.207235,96509.0,96499.0,0.10154475]
[1735233450681,0.0001712,96503.0,96499.0,0.10154475]
[1735233450882,0.0001712,96503.0,96497.0,0.02046267]
[1735233451567,0.20623,96493.0,96491.0,8.56e-05]
[1735233451826,0.10398632,96492.0,96491.0,8.56e-05]
[1735233452067,0.33068632,96492.0,96491.0,8.56e-05]
[1735233453242,0.34749366,96492.0,96491.0,8.56e-05]
[1735233454077,0.207309,96475.0,96469.0,0.16995085]
[1735233454248,0.207287,96485.0,96469.0,0.17010534]
[1735233454431,0.0767,96492.0,96470.0,0.119399]
[1735233454647,0.0767,96492.0,96480.0,0.10135187]
[1735233454843,0.0767,96492.0,96472.0,0.207314]
[1735233455045,0.0767,96492.0,96470.0,0.1183624]
[1735233455251,0.0767,96502.0,96480.0,0.10135187]
[1735233455458,0.18068632,96502.0,96485.0,0.207285]
[1735233456122,0.003,96492.0,96485.0,0.207285]
[1735233456464,0.18868632,96502.0,96485.0,0.207285]
[1735233456884,0.19068632,96502.0,96481.0,0.207294]
[1735233457086,0.22670805,96502.0,96481.0,0.207294]
[1735233457489,0.20726,96497.0,96485.0,0.003]
[1735233457688,0.207274,96491.0,96485.0,0.003]
[1735233457892,0.207275,96490.0,96485.0,0.003]
[1735233458118,0.20728,96488.0,96485.0,0.003]
[1735233458358,0.207283,96486.0,96485.0,0.003]
[1735233458566,0.31126932,96486.0,96485.0,0.003]
[1735233458774,0.31126932,96486.0,96469.0,0.17010534]
[1735233458999,0.207288,96484.0,96469.0,0.17010534]
[1735233459206,0.207298,96480.0,96473.0,0.02112586]
[1735233459413,0.31128432,96480.0,96469.0,0.17010534]
[1735233459629,0.17998632,96479.0,96469.0,0.17010534]
[1735233459828,0.207315,96472.0,96469.0,0.17010534]
[1735233460035,0.207318,96470.0,96469.0,0.00515449]
[1735233460244,0.40889695,96470.0,96469.0,0.00515449]
[1735233461039,0.31130432,96470.0,96469.0,0.00515449]
[1735233462085,0.31130432,96470.0,96469.0,0.00015449]
[1735233462493,0.31130432,96470.0,96469.0,0.00024009]
[1735233462905,0.31630432,96470.0,96469.0,0.00124009]
[1735233463111,0.31130432,96470.0,96469.0,0.00024009]
[1735233463594,0.33807432,96470.0,96469.0,0.00124009]
[1735233463836,0.31730432,96470.0,96469.0,0.00124009]
[1735233464040,0.207331,96464.0,96446.0,0.207369]
[1735233464268,0.10398632,96463.0,96446.0,0.207369]
[1735233465056,0.004,96470.0,96455.0,0.207349]
[1735233465203,0.10398632,96469.0,96450.0,0.15220941]
[1735233465415,0.10398632,96469.0,96450.0,0.03595774]
[1735233466160,0.003,96463.0,96450.0,0.03595774]
[1735233466340,0.003,96463.0,96447.0,0.00103671]
[1735233466543,0.003,96463.0,96447.0,0.414734]
[1735233466764,0.003,96463.0,96446.0,0.0151089]
[1735233466967,0.005,96463.0,96452.0,0.207356]
[1735233467334,0.003,96463.0,96452.0,0.207356]
[1735233467576,0.003,96463.0,96452.0,0.414712]
[1735233467790,0.004,96463.0,96452.0,0.207356]
[1735233467957,0.001,96463.0,96452.0,0.207356]
[1735233468158,0.31130732,96469.0,96452.0,0.207356]
[1735233468365,0.002,96463.0,96452.0,0.207356]
[1735233468560,0.05186203,96468.0,96452.0,0.207356]
[1735233468785,0.10398632,96467.0,96452.0,0.207356]
[1735233468959,0.002,96463.0,96456.0,0.207348]
[1735233469162,0.002,96463.0,96452.0,0.207356]
[1735233469817,0.10398632,96467.0,96452.0,0.207356]
[1735233469991,0.05186203,96466.0,96452.0,0.207356]
[1735233470183,0.001,96463.0,96452.0,0.207356]
[1735233470629,0.10398632,96467.0,96452.0,0.207356]
[1735233471123,0.10398632,96467.0,96463.0,0.207332]
[1735233471124,0.003,96467.0,96463.0,0.207332]
[1735233471357,0.001,96467.0,96457.0,0.207345]
[1735233471565,0.001,96467.0,96450.0,0.17284975]
[1735233471566,0.10398632,96466.0,96450.0,0.02064034]
[1735233471765,0.207335,96463.0,96450.0,0.02064034]
[1735233472026,0.207337,96461.0,96450.0,0.02064034]
[1735233472229,0.10398632,96462.0,96450.0,0.02064034]
[1735233473388,0.001,96466.0,96450.0,0.17388651]
[1735233473589,0.001,96466.0,96452.0,0.207357]
[1735233473795,0.001,96466.0,96453.0,0.00103663]
[1735233474004,0.001,96466.0,96450.0,0.17284975]
[1735233474005,0.207303,96477.0,96451.0,0.00103663]
[1735233474325,0.15304622,96476.0,96459.0,0.20734]
[1735233474742,0.001,96466.0,96459.0,0.20734]
[1735233476537,0.207307,96475.0,96459.0,0.20734]
[1735233476743,0.10398632,96474.0,96459.0,0.20734]
[1735233477433,0.10398632,96474.0,96459.0,0.20834]
[1735233477662,0.06436572,96473.0,96459.0,0.20734]
[1735233477858,0.16835204,96473.0,96459.0,0.20734]
[1735233478066,0.002,96474.0,96464.0,0.20733]
[1735233478274,0.002,96474.0,96457.0,0.207346]
[1735233478275,0.002,96474.0,96473.0,0.207311]
[1735233478447,0.001,96474.0,96473.0,0.207311]
[1735233478865,0.003,96474.0,96473.0,0.207311]
[1735233479063,0.001,96474.0,96473.0,0.207311]
[1735233479567,0.001,96474.0,96473.0,0.2705062]
[1735233479772,0.0001546,96479.0,96478.0,0.207301]
[1735233479976,0.0001546,96479.0,96478.0,0.46128732]
[1735233480395,0.0001712,96503.0,96492.0,0.207271]
[1735233480601,0.0001712,96503.0,96492.0,0.31125732]
[1735233480814,0.0001712,96503.0,96492.0,0.36774115]
[1735233481359,0.0001712,96503.0,96492.0,0.31125732]
[1735233481554,0.0001712,96503.0,96492.0,0.31825732]
[1735233481768,0.0001712,96503.0,96492.0,0.32025732]
[1735233481993,0.0001712,96503.0,96492.0,0.209271]
[1735233482505,0.0001712,96503.0,96492.0,0.46325732]
[1735233483109,0.0001712,96503.0,96492.0,0.46125732]
[1735233483460,0.0001712,96503.0,96492.0,0.47972209]
[1735233483879,0.0001712,96503.0,96492.0,0.48572209]
[1735233484089,0.0001712,96503.0,96492.0,0.50572209]
[1735233484326,0.0001712,96503.0,96492.0,0.7825524]
[1735233484523,2e-07,96493.0,96492.0,0.91128054]
[1735233484725,2e-07,96493.0,96492.0,0.89728054]
[1735233485040,2e-07,96493.0,96492.0,0.90028054]
[1735233485247,2e-07,96493.0,96492.0,0.90328054]
[1735233485453,2e-07,96493.0,96492.0,0.80328054]
[1735233485650,2e-07,96493.0,96492.0,0.81228054]
[1735233486590,2e-07,96493.0,96492.0,0.78628054]
[1735233486803,2e-07,96493.0,96492.0,0.69228054]
[1735233487010,2e-07,96493.0,96492.0,0.77628054]
[1735233487211,2e-07,96493.0,96492.0,0.78528054]
[1735233487418,2e-07,96493.0,96492.0,0.77928054]
[1735233487620,2e-07,96493.0,96492.0,0.68528054]
[1735233487817,2e-07,96493.0,96492.0,0.61738054]
[1735233488125,2e-07,96493.0,96492.0,0.59338054]
[1735233488420,2e-07,96493.0,96492.0,0.60038054]
[1735233488668,2e-07,96493.0,96492.0,0.60338054]
[1735233488875,2e-07,96493.0,96492.0,0.59638054]
[1735233489997,2e-07,96493.0,96492.0,0.59338054]
[1735233490202,2e-07,96493.0,96492.0,0.60538054]
[1735233490665,2e-07,96493.0,96492.0,0.61438054]
[1735233493146,2e-07,96493.0,96492.0,0.39346391]
[1735233493341,2e-07,96493.0,96492.0,0.40746391]
[1735233493956,2e-07,96493.0,96492.0,0.40246391]
[1735233494191,2e-07,96493.0,96492.0,0.39746391]
[1735233494601,2e-07,96493.0,96492.0,0.40646391]
[1735233494802,2e-07,96493.0,96492.0,0.4638384]
[1735233495005,2e-07,96493.0,96492.0,0.40746391]
[1735233495749,2e-07,96493.0,96492.0,0.41646391]
[1735233496361,2e-07,96493.0,96492.0,0.41146391]
[1735233496724,2e-07,96493.0,96492.0,0.41546391]
[1735233497099,2e-07,96493.0,96492.0,0.04272814]
[1735233497308,2e-07,96493.0,96492.0,0.03872814]
[1735233497457,2e-07,96493.0,96492.0,0.02372814]
[1735233497859,2e-07,96493.0,96492.0,0.03272814]
[1735233498097,2e-07,96493.0,96492.0,0.02072814]
[1735233498503,2e-07,96493.0,96492.0,0.02172814]
[1735233498866,2e-07,96493.0,96492.0,0.23139258]
[1735233499072,2e-07,96493.0,96492.0,0.33434257]
[1735233499287,2e-07,96493.0,96492.0,0.55734257]
[1735233499498,2e-07,96503.0,96502.0,0.580249]
[1735233499706,0.0002,96529.0,96524.0,0.207202]
[1735233499932,0.00068734,96525.0,96524.0,0.2279222]
[1735233500349,0.00068734,96525.0,96524.0,0.50490852]
[1735233500972,0.00068734,96525.0,96524.0,0.51905937]
[1735233501179,0.00068734,96525.0,96524.0,0.54383028]
[1735233501384,0.00068734,96525.0,96524.0,0.54283028]
[1735233501965,0.00068734,96525.0,96524.0,0.55183028]
[1735233502857,0.00068734,96525.0,96524.0,0.54883028]
[1735233503146,0.00068734,96525.0,96524.0,0.55383028]
[1735233503365,0.00068734,96525.0,96524.0,0.54483028]
[1735233503795,0.00068734,96525.0,96524.0,0.55383028]
[1735233503962,0.00068734,96525.0,96524.0,0.54883028]
[1735233504347,0.00068734,96525.0,96524.0,0.54083028]
[1735233504738,0.00068734,96525.0,96524.0,0.53483028]
[1735233506645,0.00068734,96525.0,96524.0,0.54083028]
[1735233507494,0.00068734,96525.0,96524.0,0.41612376]
[1735233507923,0.00068734,96525.0,96524.0,0.26612376]
[1735233508543,0.00068734,96525.0,96524.0,0.24812376]
[1735233509144,0.00068734,96525.0,96524.0,0.23397291]
[1735233509793,0.00068734,96525.0,96524.0,0.23297291]
[1735233510129,0.00068734,96525.0,96524.0,0.22997291]
[1735233510342,0.00068734,96525.0,96524.0,0.23497291]
[1735233510541,0.00068734,96525.0,96524.0,0.23297291]
[1735233510998,0.00068734,96525.0,96524.0,0.23497291]
[1735233511203,0.00068734,96525.0,96524.0,0.22997291]
[1735233511408,0.00068734,96525.0,96524.0,0.22797291]
[1735233511559,0.00068734,96525.0,96524.0,0.23397291]
[1735233511755,0.00068734,96525.0,96524.0,0.23597291]
[1735233512056,0.00068734,96525.0,96524.0,0.40640093]
[1735233512458,0.00068734,96525.0,96524.0,0.33995923]
[1735233512934,0.00068734,96525.0,96524.0,0.22997291]
[1735233513142,0.00068734,96525.0,96524.0,0.23397291]
[1735233513340,0.06288734,96549.0,96524.0,0.23597291]
[1735233513589,0.31113632,96548.0,96524.0,0.23597291]
[1735233513807,0.31113632,96548.0,96524.0,0.24497291]
[1735233514018,0.31113632,96548.0,96525.0,0.0258999]
[1735233514232,0.10398632,96548.0,96535.0,0.207176]
[1735233514411,0.06304202,96549.0,96538.0,0.30843598]
[1735233514627,0.06304202,96549.0,96539.0,0.20717]
[1735233515061,0.10598632,96548.0,96532.0,0.207185]
[1735233515678,0.10598632,96548.0,96521.0,0.15]
[1735233515962,0.207178,96536.0,96521.0,0.15]
[1735233516168,0.046,96531.0,96500.0,0.10126498]
[1735233516372,0.207209,96521.0,96508.0,0.02085182]
[1735233516584,0.207209,96521.0,96506.0,0.207239]
[1735233516793,0.207218,96517.0,96502.0,0.02041403]
[1735233516995,0.0823,96516.0,96501.0,0.207251]
[1735233517260,0.39350732,96516.0,96492.0,0.2073556]
[1735233517465,0.207245,96504.0,96492.0,8.56e-05]
[1735233517678,0.18628632,96503.0,96492.0,8.56e-05]
[1735233518097,0.207258,96498.0,96492.0,0.00060154]
[1735233518518,0.207268,96494.0,96492.0,0.00060154]
[1735233518719,0.10398632,96493.0,96492.0,0.00060154]
[1735233518944,0.10398632,96493.0,96492.0,0.00860154]
[1735233519154,0.0823,96503.0,96492.0,0.00860154]
[1735233519372,0.10398632,96502.0,96492.0,0.00860154]
[1735233519773,0.0823,96503.0,96493.0,0.207268]
[1735233519979,0.0823,96503.0,96492.0,0.21587154]
[1735233520219,0.207259,96498.0,96492.0,0.00260154]
[1735233520419,0.001,96498.0,96492.0,0.01160154]
[1735233520857,0.0823,96503.0,96493.0,0.207268]
[1735233521069,0.0833,96503.0,96493.0,0.207268]
[1735233521268,0.0833,96503.0,96493.0,0.414536]
[1735233521461,0.0833,96503.0,96493.0,0.207268]
[1735233521665,0.0833,96503.0,96492.0,0.00160154]
[1735233521875,0.207249,96502.0,96492.0,0.00160154]
[1735233522077,0.004,96498.0,96492.0,0.00060154]
[1735233523292,0.207249,96502.0,96493.0,8.56e-05]
[1735233523458,0.18728632,96503.0,96493.0,8.56e-05]
[1735233523670,0.207249,96502.0,96493.0,8.56e-05]
[1735233523873,0.207262,96496.0,96493.0,8.56e-05]
[1735233524096,0.10398632,96495.0,96450.0,0.16288489]
[1735233524303,0.0802,96476.0,96455.0,0.0001546]
[1735233524541,0.18418632,96476.0,96462.0,0.02083888]
[1735233524749,0.207307,96475.0,96463.0,0.207333]
[1735233524953,0.207307,96475.0,96462.0,0.02083888]
[1735233525157,0.207309,96474.0,96461.0,0.207336]
[1735233525597,0.414619,96474.0,96460.0,0.02078699]
[1735233526027,0.207309,96474.0,96461.0,0.207337]
[1735233526634,0.18418632,96476.0,96465.0,0.207327]
[1735233526846,0.0802,96476.0,96460.0,0.15208808]
[1735233527045,0.0802,96486.0,96472.0,0.207312]
[1735233527181,0.31127632,96483.0,96472.0,0.207312]
[1735233527378,0.31127632,96483.0,96469.0,0.207318]
[1735233527590,0.207292,96482.0,96467.0,0.207324]
[1735233527816,0.31127832,96482.0,96468.0,0.207322]
[1735233527992,0.37592425,96482.0,96468.0,0.207322]
[1735233528194,0.37592425,96482.0,96472.0,0.207313]
[1735233528425,0.37592425,96482.0,96468.0,0.207322]
[1735233529034,0.16863225,96482.0,96461.0,0.003]
[1735233529232,0.16863225,96482.0,96472.0,0.207312]
[1735233529814,0.16963225,96482.0,96472.0,0.207312]
[1735233530013,0.10398632,96482.0,96472.0,0.207312]
[1735233530377,0.10498632,96482.0,96472.0,0.207312]
[1735233530917,0.10598632,96482.0,96472.0,0.207312]
[1735233531114,0.002,96482.0,96476.0,0.207304]
[1735233531313,0.002,96482.0,96470.0,0.15208808]
[1735233531561,0.002,96482.0,96480.0,0.207296]
[1735233531990,0.002,96482.0,96476.0,0.207304]
[1735233532197,0.207294,96481.0,96468.0,0.20732]
[1735233532412,0.207298,96479.0,96465.0,0.207326]
[1735233532581,0.207298,96479.0,96465.0,0.414654]
[1735233532823,0.207301,96478.0,96465.0,0.207326]
[1735233533321,0.0416592,96477.0,96465.0,0.207326]
[1735233533678,0.31129132,96476.0,96465.0,0.207326]
[1735233534100,0.10398632,96476.0,96469.0,0.20732]
[1735233534280,0.207291,96483.0,96469.0,0.20732]
[1735233534490,0.10398632,96482.0,96469.0,0.20732]
[1735233534692,0.001,96481.0,96469.0,0.20732]
[1735233534943,0.10398632,96480.0,96465.0,0.208326]
[1735233535129,0.001,96481.0,96465.0,0.001]